[Event "Titled Tuesday Blitz March 29 Early 2022"]
[White "Silva, Mariana Sofia T."]
[Black "Borodavkin, Anatoly"]
[WhiteFideId "1911899"]
[BlackFideId "14150662"]
[WhiteElo "1825"]
[BlackElo "1845"]
[Result "1-0"]
[Round "10"]
[TimeControl "180+1"]
[Date "2022.03.30"]
[WhiteClock "0:00:01"]
[BlackClock "0:00:01"]

1. d4 {[%clk 0:03:00]}  d5 {[%clk 0:02:59]} 2. c4 {[%clk 0:03:00]}  Nc6 {[%clk 0:03:00]} 3. g3 {[%clk 0:02:57]}  Nf6 {[%clk 0:02:53]} 4. Bg2 {[%clk 0:02:56]}  Bg4 {[%clk 0:02:37]} 5. h3 {[%clk 0:02:50]}  Bh5 {[%clk 0:02:37]} 6. g4 {[%clk 0:02:49]}  Bg6 {[%clk 0:02:37]} 7. Nf3 {[%clk 0:02:48]}  e6 {[%clk 0:02:30]} 8. Nc3 {[%clk 0:02:47]}  Be7 {[%clk 0:02:21]} 9. Ne5 {[%clk 0:02:38]}  O-O {[%clk 0:01:50]} 10. cxd5 {[%clk 0:02:15]}  Nxd5 {[%clk 0:01:38]} 11. Nxc6 {[%clk 0:02:00]}  bxc6 {[%clk 0:01:37]} 12. O-O {[%clk 0:01:43]}  Rb8 {[%clk 0:01:29]} 13. e4 {[%clk 0:01:41]}  Nf6 {[%clk 0:01:18]} 14. f4 {[%clk 0:01:34]}  h6 {[%clk 0:01:05]} 15. f5 {[%clk 0:01:28]}  Bh7 {[%clk 0:01:05]} 16. e5 {[%clk 0:01:24]}  Nd5 {[%clk 0:00:59]} 17. Nxd5 {[%clk 0:01:21]}  cxd5 {[%clk 0:00:57]} 18. f6 {[%clk 0:01:21]}  gxf6 {[%clk 0:00:54]} 19. Bxh6 {[%clk 0:01:05]}  fxe5 {[%clk 0:00:50]} 20. Bxf8 {[%clk 0:00:53]}  Qxf8 {[%clk 0:00:48]} 21. Qd2 {[%clk 0:00:45]}  exd4 {[%clk 0:00:48]} 22. Kh1 {[%clk 0:00:36]}  Qg7 {[%clk 0:00:44]} 23. Qf4 {[%clk 0:00:24]}  Bd6 {[%clk 0:00:42]} 24. Qf2 {[%clk 0:00:22]}  a5 {[%clk 0:00:32]} 25. Rae1 {[%clk 0:00:18]}  d3 {[%clk 0:00:32]} 26. Rd1 {[%clk 0:00:17]}  Rxb2 {[%clk 0:00:30]} 27. Qa7 {[%clk 0:00:15]}  Rxa2 {[%clk 0:00:21]} 28. Rb1 {[%clk 0:00:10]}  d2 {[%clk 0:00:14]} 29. Rb8+ {[%clk 0:00:09]}  Bf8 {[%clk 0:00:14]} 30. Qa8 {[%clk 0:00:09]}  Rc2 {[%clk 0:00:09]} 31. Bf3 {[%clk 0:00:08]}  Rc1 {[%clk 0:00:08]} 32. Bd1 {[%clk 0:00:08]}  Bc2 {[%clk 0:00:07]} 33. Qa6 {[%clk 0:00:03]}  Rxd1 {[%clk 0:00:06]} 34. Rxd1 {[%clk 0:00:02]}  Bxd1 {[%clk 0:00:06]} 35. Qd3 {[%clk 0:00:02]}  Bf3+ {[%clk 0:00:01]} 36. Qxf3 {[%clk 0:00:01]}  Qa1+ {[%clk 0:00:01]} 37. Kg2 {[%clk 0:00:02]}  d1=Q {[%clk 0:00:01]} 38. Qe3 {[%clk 0:00:01]} 1-0


[Site "https://www.chess.com"]

[Event "Titled Tuesday Blitz March 29 Early 2022"]
[White "Silvestre, Christian"]
[Black "Karavade, Eesha"]
[WhiteFideId "30956269"]
[BlackFideId "5012600"]
[WhiteElo "2411"]
[BlackElo "2258"]
[Result "0-1"]
[Round "10"]
[TimeControl "180+1"]
[Date "2022.03.30"]
[WhiteClock "0:01:59"]
[BlackClock "0:02:09"]

1. Nf3 {[%clk 0:03:00]}  Nf6 {[%clk 0:02:59]} 2. d3 {[%clk 0:03:00]}  d5 {[%clk 0:02:57]} 3. g3 {[%clk 0:02:59]}  g6 {[%clk 0:02:54]} 4. Bg2 {[%clk 0:02:59]}  Bg7 {[%clk 0:02:55]} 5. O-O {[%clk 0:03:00]}  O-O {[%clk 0:02:55]} 6. c4 {[%clk 0:03:00]}  dxc4 {[%clk 0:02:44]} 7. dxc4 {[%clk 0:03:01]}  Qxd1 {[%clk 0:02:44]} 8. Rxd1 {[%clk 0:03:01]}  c6 {[%clk 0:02:44]} 9. Nc3 {[%clk 0:02:58]}  Be6 {[%clk 0:02:42]} 10. b3 {[%clk 0:02:32]}  Ne4 {[%clk 0:02:37]} 11. Nxe4 {[%clk 0:02:32]}  Bxa1 {[%clk 0:02:36]} 12. Ba3 {[%clk 0:02:31]}  Bg7 {[%clk 0:02:34]} 13. Bxe7 {[%clk 0:02:30]}  Re8 {[%clk 0:02:33]} 14. Ba3 {[%clk 0:02:26]}  Na6 {[%clk 0:02:19]} 15. Nd6 {[%clk 0:02:14]}  Red8 {[%clk 0:02:18]} 16. Rc1 {[%clk 0:02:09]}  Bf8 {[%clk 0:02:14]} 17. c5 {[%clk 0:02:08]}  Nxc5 {[%clk 0:02:11]} 18. Bxc5 {[%clk 0:02:02]}  Bxd6 {[%clk 0:02:11]} 19. e3 {[%clk 0:01:59]}  Bxc5 {[%clk 0:02:09]} 0-1


[Site "https://www.chess.com"]

[Event "Titled Tuesday Blitz March 29 Early 2022"]
[White "Suarez Uriel, Adrian"]
[Black "Yanayt, Eugene"]
[WhiteFideId "22230874"]
[BlackFideId "2020165"]
[WhiteElo "2316"]
[BlackElo "2046"]
[Result "0-1"]
[Round "10"]
[TimeControl "180+1"]
[Date "2022.03.30"]
[WhiteClock "0:02:03"]
[BlackClock "0:01:10"]

1. d4 {[%clk 0:03:00]}  Nf6 {[%clk 0:02:49]} 2. c4 {[%clk 0:02:59]}  g6 {[%clk 0:02:49]} 3. Nc3 {[%clk 0:02:59]}  Bg7 {[%clk 0:02:49]} 4. e4 {[%clk 0:02:59]}  d6 {[%clk 0:02:49]} 5. h3 {[%clk 0:02:58]}  O-O {[%clk 0:02:48]} 6. Be3 {[%clk 0:02:57]}  c5 {[%clk 0:02:47]} 7. Nf3 {[%clk 0:02:54]}  Qa5 {[%clk 0:02:42]} 8. Bd3 {[%clk 0:02:52]}  Nc6 {[%clk 0:02:41]} 9. O-O {[%clk 0:02:51]}  e5 {[%clk 0:02:36]} 10. d5 {[%clk 0:02:46]}  Nd4 {[%clk 0:02:35]} 11. Bxd4 {[%clk 0:02:41]}  cxd4 {[%clk 0:02:35]} 12. Nb5 {[%clk 0:02:40]}  Ne8 {[%clk 0:02:17]} 13. a3 {[%clk 0:02:34]}  a6 {[%clk 0:02:16]} 14. b4 {[%clk 0:02:33]}  Qd8 {[%clk 0:02:14]} 15. Nxd6 {[%clk 0:02:33]}  Qxd6 {[%clk 0:02:14]} 16. c5 {[%clk 0:02:34]}  Qd8 {[%clk 0:02:09]} 17. Qb3 {[%clk 0:02:33]}  Kh8 {[%clk 0:02:00]} 18. a4 {[%clk 0:02:28]}  f5 {[%clk 0:01:59]} 19. b5 {[%clk 0:02:23]}  fxe4 {[%clk 0:01:57]} 20. Bxe4 {[%clk 0:02:23]}  Nf6 {[%clk 0:01:56]} 21. Rfe1 {[%clk 0:02:19]}  Nxe4 {[%clk 0:01:52]} 22. Rxe4 {[%clk 0:02:19]}  Bf5 {[%clk 0:01:50]} 23. Ree1 {[%clk 0:02:17]}  e4 {[%clk 0:01:48]} 24. Nd2 {[%clk 0:02:15]}  e3 {[%clk 0:01:24]} 25. Nf3 {[%clk 0:02:11]}  Be4 {[%clk 0:01:18]} 26. fxe3 {[%clk 0:02:09]}  Bxf3 {[%clk 0:01:11]} 27. gxf3 {[%clk 0:02:09]}  Rxf3 {[%clk 0:01:11]} 28. Qd1 {[%clk 0:02:07]}  Qg5+ {[%clk 0:01:10]} 29. Kh2 {[%clk 0:02:03]}  Rf2+ {[%clk 0:01:10]} 0-1


[Site "https://www.chess.com"]

[Event "Titled Tuesday Blitz March 29 Early 2022"]
[White "Tiarks, Jann-Christian"]
[Black "Agasarov, Benik"]
[WhiteFideId "12951595"]
[BlackFideId "13314823"]
[WhiteElo "2176"]
[BlackElo "2521"]
[Result "0-1"]
[Round "10"]
[TimeControl "180+1"]
[Date "2022.03.30"]
[WhiteClock "0:02:23"]
[BlackClock "0:02:06"]

1. e4 {[%clk 0:03:00]}  e5 {[%clk 0:03:00]} 2. Nf3 {[%clk 0:03:00]}  Nc6 {[%clk 0:03:00]} 3. d4 {[%clk 0:03:01]}  exd4 {[%clk 0:03:00]} 4. Nxd4 {[%clk 0:03:02]}  Nf6 {[%clk 0:03:00]} 5. Nc3 {[%clk 0:03:02]}  Bb4 {[%clk 0:03:00]} 6. Nxc6 {[%clk 0:03:02]}  bxc6 {[%clk 0:03:01]} 7. Bd3 {[%clk 0:03:03]}  d5 {[%clk 0:03:02]} 8. exd5 {[%clk 0:03:03]}  O-O {[%clk 0:03:02]} 9. O-O {[%clk 0:03:03]}  Bg4 {[%clk 0:03:03]} 10. Be2 {[%clk 0:02:55]}  Bxe2 {[%clk 0:03:02]} 11. Nxe2 {[%clk 0:02:54]}  cxd5 {[%clk 0:03:02]} 12. Bf4 {[%clk 0:02:54]}  Bd6 {[%clk 0:03:01]} 13. Qd3 {[%clk 0:02:48]}  Rb8 {[%clk 0:03:00]} 14. b3 {[%clk 0:02:48]}  c6 {[%clk 0:02:54]} 15. c4 {[%clk 0:02:42]}  Bxf4 {[%clk 0:02:45]} 16. Nxf4 {[%clk 0:02:42]}  Qc7 {[%clk 0:02:44]} 17. g3 {[%clk 0:02:37]}  Rfd8 {[%clk 0:02:41]} 18. Rac1 {[%clk 0:02:37]}  d4 {[%clk 0:02:38]} 19. c5 {[%clk 0:02:35]}  Nd5 {[%clk 0:02:34]} 20. Nxd5 {[%clk 0:02:29]}  Rxd5 {[%clk 0:02:33]} 21. Rfe1 {[%clk 0:02:29]}  Rbd8 {[%clk 0:02:30]} 22. Re4 {[%clk 0:02:26]}  h6 {[%clk 0:02:29]} 23. b4 {[%clk 0:02:26]}  a5 {[%clk 0:02:23]} 24. a3 {[%clk 0:02:25]}  axb4 {[%clk 0:02:21]} 25. axb4 {[%clk 0:02:26]}  Qb7 {[%clk 0:02:21]} 26. Rce1 {[%clk 0:02:26]}  Rf8 {[%clk 0:02:08]} 27. Rxd4 {[%clk 0:02:24]}  Qxb4 {[%clk 0:02:07]} 28. Rxd5 {[%clk 0:02:23]}  Qxe1+ {[%clk 0:02:06]} 0-1


[Site "https://www.chess.com"]

[Event "Titled Tuesday Blitz March 29 Early 2022"]
[White "Timofeev, Artyom"]
[Black "Karolczuk, Iwo"]
[WhiteFideId "4140419"]
[BlackFideId "21816972"]
[WhiteElo "2594"]
[BlackElo "2243"]
[Result "1-0"]
[Round "10"]
[TimeControl "180+1"]
[Date "2022.03.29"]
[WhiteClock "0:00:09"]
[BlackClock "0:00:02"]

1. e4 {[%clk 0:03:00]}  c5 {[%clk 0:02:58]} 2. Nc3 {[%clk 0:03:00]}  Nc6 {[%clk 0:02:56]} 3. g3 {[%clk 0:03:01]}  g6 {[%clk 0:02:56]} 4. Bg2 {[%clk 0:03:01]}  Bg7 {[%clk 0:02:57]} 5. d3 {[%clk 0:03:02]}  d6 {[%clk 0:02:57]} 6. Be3 {[%clk 0:03:01]}  e5 {[%clk 0:02:57]} 7. Nge2 {[%clk 0:02:57]}  Nge7 {[%clk 0:02:56]} 8. O-O {[%clk 0:02:57]}  O-O {[%clk 0:02:56]} 9. f4 {[%clk 0:02:57]}  exf4 {[%clk 0:02:55]} 10. Nxf4 {[%clk 0:02:55]}  Ne5 {[%clk 0:02:52]} 11. h3 {[%clk 0:02:51]}  Rb8 {[%clk 0:02:51]} 12. a4 {[%clk 0:02:49]}  a6 {[%clk 0:02:47]} 13. Kh2 {[%clk 0:02:48]}  b5 {[%clk 0:02:47]} 14. axb5 {[%clk 0:02:48]}  axb5 {[%clk 0:02:48]} 15. Qd2 {[%clk 0:02:34]}  b4 {[%clk 0:02:43]} 16. Ncd5 {[%clk 0:02:33]}  Nxd5 {[%clk 0:02:43]} 17. Nxd5 {[%clk 0:02:33]}  Be6 {[%clk 0:02:43]} 18. Nf4 {[%clk 0:02:30]}  Bc8 {[%clk 0:02:27]} 19. b3 {[%clk 0:02:28]}  Nc6 {[%clk 0:02:25]} 20. Rae1 {[%clk 0:02:23]}  Nd4 {[%clk 0:02:25]} 21. Nd5 {[%clk 0:02:22]}  Be6 {[%clk 0:02:24]} 22. Bg5 {[%clk 0:02:22]}  f6 {[%clk 0:02:22]} 23. Bf4 {[%clk 0:02:20]}  Qd7 {[%clk 0:02:12]} 24. h4 {[%clk 0:02:14]}  Rbe8 {[%clk 0:02:09]} 25. Ne3 {[%clk 0:02:12]}  h6 {[%clk 0:01:56]} 26. g4 {[%clk 0:01:38]}  Kh7 {[%clk 0:01:41]} 27. Qd1 {[%clk 0:01:23]}  Nc6 {[%clk 0:01:25]} 28. h5 {[%clk 0:01:18]}  g5 {[%clk 0:01:23]} 29. Bg3 {[%clk 0:01:18]}  Ne5 {[%clk 0:01:23]} 30. Nf5 {[%clk 0:01:10]}  Ra8 {[%clk 0:01:19]} 31. Kh3 {[%clk 0:00:51]}  Ra2 {[%clk 0:01:18]} 32. Rf2 {[%clk 0:00:35]}  Rc8 {[%clk 0:01:16]} 33. Ref1 {[%clk 0:00:35]}  Bh8 {[%clk 0:01:00]} 34. Qc1 {[%clk 0:00:35]}  Qd8 {[%clk 0:00:45]} 35. Qe3 {[%clk 0:00:34]}  Qd7 {[%clk 0:00:43]} 36. Rd2 {[%clk 0:00:34]}  Bg7 {[%clk 0:00:40]} 37. Rfd1 {[%clk 0:00:32]}  Re8 {[%clk 0:00:38]} 38. Qf2 {[%clk 0:00:31]}  Nc6 {[%clk 0:00:34]} 39. Bf1 {[%clk 0:00:29]}  Ne5 {[%clk 0:00:31]} 40. Be2 {[%clk 0:00:29]}  Bxf5 {[%clk 0:00:29]} 41. exf5 {[%clk 0:00:29]}  Rc8 {[%clk 0:00:27]} 42. Bf3 {[%clk 0:00:28]}  Bf8 {[%clk 0:00:26]} 43. Bd5 {[%clk 0:00:28]}  Qa7 {[%clk 0:00:25]} 44. Qg2 {[%clk 0:00:27]}  Kg7 {[%clk 0:00:25]} 45. Qe4 {[%clk 0:00:27]}  Be7 {[%clk 0:00:25]} 46. Be6 {[%clk 0:00:27]}  Rb8 {[%clk 0:00:24]} 47. Qd5 {[%clk 0:00:27]}  Qb7 {[%clk 0:00:24]} 48. Re2 {[%clk 0:00:21]}  Qxd5 {[%clk 0:00:24]} 49. Bxd5 {[%clk 0:00:21]}  Rc8 {[%clk 0:00:23]} 50. Rdd2 {[%clk 0:00:21]}  Rc7 {[%clk 0:00:23]} 51. d4 {[%clk 0:00:21]}  cxd4 {[%clk 0:00:19]} 52. Rxd4 {[%clk 0:00:22]}  Ra5 {[%clk 0:00:19]} 53. Be6 {[%clk 0:00:21]}  Rb5 {[%clk 0:00:17]} 54. Ree4 {[%clk 0:00:19]}  Rcb7 {[%clk 0:00:14]} 55. Bd5 {[%clk 0:00:18]}  Rb8 {[%clk 0:00:13]} 56. Bc4 {[%clk 0:00:18]}  Rc5 {[%clk 0:00:12]} 57. Rd5 {[%clk 0:00:18]}  Rxd5 {[%clk 0:00:10]} 58. Bxd5 {[%clk 0:00:18]}  Bd8 {[%clk 0:00:11]} 59. Be1 {[%clk 0:00:17]}  Ba5 {[%clk 0:00:11]} 60. Be6 {[%clk 0:00:17]}  Kf8 {[%clk 0:00:11]} 61. Bd2 {[%clk 0:00:17]}  Ke7 {[%clk 0:00:11]} 62. Kg2 {[%clk 0:00:16]}  d5 {[%clk 0:00:10]} 63. Re2 {[%clk 0:00:15]}  d4 {[%clk 0:00:10]} 64. Be1 {[%clk 0:00:15]}  Kd6 {[%clk 0:00:09]} 65. Bg3 {[%clk 0:00:15]}  Bc7 {[%clk 0:00:09]} 66. Bxe5+ {[%clk 0:00:15]}  fxe5 {[%clk 0:00:10]} 67. Bc4 {[%clk 0:00:15]}  Ke7 {[%clk 0:00:10]} 68. f6+ {[%clk 0:00:15]}  Kxf6 {[%clk 0:00:04]} 69. Rf2+ {[%clk 0:00:15]}  Ke7 {[%clk 0:00:05]} 70. Rf7+ {[%clk 0:00:16]}  Kd6 {[%clk 0:00:05]} 71. Rf6+ {[%clk 0:00:16]}  Kc5 {[%clk 0:00:05]} 72. Rxh6 {[%clk 0:00:16]}  e4 {[%clk 0:00:06]} 73. Re6 {[%clk 0:00:16]}  e3 {[%clk 0:00:05]} 74. h6 {[%clk 0:00:17]}  Rh8 {[%clk 0:00:05]} 75. Bd3 {[%clk 0:00:16]}  Bd6 {[%clk 0:00:03]} 76. h7 {[%clk 0:00:16]}  Kd5 {[%clk 0:00:03]} 77. Rf6 {[%clk 0:00:14]}  Be5 {[%clk 0:00:03]} 78. Rf7 {[%clk 0:00:13]}  Ke6 {[%clk 0:00:03]} 79. Rf1 {[%clk 0:00:13]}  Bf4 {[%clk 0:00:03]} 80. Ra1 {[%clk 0:00:13]}  Be5 {[%clk 0:00:02]} 81. Ra6+ {[%clk 0:00:10]}  Kd5 {[%clk 0:00:02]} 82. Ra7 {[%clk 0:00:09]}  Bf6 {[%clk 0:00:01]} 83. Kf3 {[%clk 0:00:09]}  Be5 {[%clk 0:00:01]} 84. Ke2 {[%clk 0:00:09]}  Rf8 {[%clk 0:00:01]} 85. Bf5 {[%clk 0:00:09]}  Rh8 {[%clk 0:00:01]} 86. Ra5+ {[%clk 0:00:09]}  Kd6 {[%clk 0:00:01]} 87. Kd3 {[%clk 0:00:10]}  Bf6 {[%clk 0:00:02]} 88. Be4 {[%clk 0:00:10]}  Be5 {[%clk 0:00:02]} 89. Ra6+ {[%clk 0:00:09]}  Kd7 {[%clk 0:00:02]} 90. Bf5+ {[%clk 0:00:09]}  Kc7 {[%clk 0:00:02]} 91. Re6 {[%clk 0:00:09]}  Bf4 {[%clk 0:00:03]} 92. Re7+ {[%clk 0:00:09]}  Kd6 {[%clk 0:00:03]} 93. Rg7 {[%clk 0:00:09]}  Be5 {[%clk 0:00:02]} 94. Rxg5 {[%clk 0:00:09]}  Ke7 {[%clk 0:00:01]} 95. Rg6 {[%clk 0:00:09]}  Bf6 {[%clk 0:00:01]} 96. Rg8 {[%clk 0:00:09]}  Kf7 {[%clk 0:00:01]} 97. g5 {[%clk 0:00:08]}  Bg7 {[%clk 0:00:01]} 98. g6+ {[%clk 0:00:08]}  Kf6 {[%clk 0:00:01]} 99. Be4 {[%clk 0:00:09]}  Ke5 {[%clk 0:00:02]} 100. Rxg7 {[%clk 0:00:09]} 1-0


[Site "https://www.chess.com"]

[Event "Titled Tuesday Blitz March 29 Early 2022"]
[White "Toncheva, Nadya"]
[Black "Mogirzan, Matei-Valeriu"]
[WhiteFideId "2924056"]
[BlackFideId "1257455"]
[WhiteElo "1884"]
[BlackElo "1733"]
[Result "0-1"]
[Round "10"]
[TimeControl "180+1"]
[Date "2022.03.30"]
[WhiteClock "0:00:08"]
[BlackClock "0:00:07"]

1. e4 {[%clk 0:02:19]}  e5 {[%clk 0:02:59]} 2. Nf3 {[%clk 0:02:17]}  Nf6 {[%clk 0:02:56]} 3. Nxe5 {[%clk 0:02:17]}  Nc6 {[%clk 0:02:54]} 4. Nxc6 {[%clk 0:02:15]}  dxc6 {[%clk 0:02:55]} 5. d3 {[%clk 0:02:14]}  Bc5 {[%clk 0:02:54]} 6. Be2 {[%clk 0:02:11]}  h5 {[%clk 0:02:53]} 7. c3 {[%clk 0:02:08]}  Ng4 {[%clk 0:02:53]} 8. d4 {[%clk 0:02:09]}  Qh4 {[%clk 0:02:51]} 9. g3 {[%clk 0:01:47]}  Qf6 {[%clk 0:02:50]} 10. Bf4 {[%clk 0:01:41]}  g5 {[%clk 0:02:30]} 11. dxc5 {[%clk 0:00:59]}  gxf4 {[%clk 0:02:24]} 12. Qd4 {[%clk 0:00:57]}  Ne5 {[%clk 0:02:17]} 13. Nd2 {[%clk 0:00:52]}  Bg4 {[%clk 0:02:10]} 14. f3 {[%clk 0:00:47]}  Rd8 {[%clk 0:01:58]} 15. Qf2 {[%clk 0:00:44]}  fxg3 {[%clk 0:01:37]} 16. hxg3 {[%clk 0:00:38]}  h4 {[%clk 0:00:45]} 17. O-O-O {[%clk 0:00:34]}  Be6 {[%clk 0:00:31]} 18. f4 {[%clk 0:00:26]}  Bxa2 {[%clk 0:00:24]} 19. Rxh4 {[%clk 0:00:24]}  Rxh4 {[%clk 0:00:21]} 20. gxh4 {[%clk 0:00:25]}  Rd3 {[%clk 0:00:16]} 21. Qg2 {[%clk 0:00:17]}  Re3 {[%clk 0:00:05]} 22. fxe5 {[%clk 0:00:16]}  Qxe5 {[%clk 0:00:06]} 23. Bc4 {[%clk 0:00:15]}  Rxc3+ {[%clk 0:00:06]} 24. bxc3 {[%clk 0:00:08]}  Qxc3# {[%clk 0:00:07]} 0-1


[Site "https://www.chess.com"]

[Event "Titled Tuesday Blitz March 29 Early 2022"]
[White "Vestby-Ellingsen, Mads"]
[Black "Legenia, Artem"]
[WhiteFideId "1520857"]
[BlackFideId "14136945"]
[WhiteElo "2232"]
[BlackElo "1936"]
[Result "1-0"]
[Round "10"]
[TimeControl "180+1"]
[Date "2022.03.30"]
[WhiteClock "0:00:09"]
[BlackClock "0:00:16"]

1. e4 {[%clk 0:03:00]}  c6 {[%clk 0:02:45]} 2. d4 {[%clk 0:03:00]}  d5 {[%clk 0:02:43]} 3. exd5 {[%clk 0:03:00]}  cxd5 {[%clk 0:02:43]} 4. Bd3 {[%clk 0:03:00]}  Nc6 {[%clk 0:02:42]} 5. c3 {[%clk 0:03:01]}  g6 {[%clk 0:02:42]} 6. Nf3 {[%clk 0:02:58]}  Nh6 {[%clk 0:02:38]} 7. O-O {[%clk 0:02:55]}  Bg7 {[%clk 0:02:37]} 8. h3 {[%clk 0:02:46]}  O-O {[%clk 0:02:36]} 9. Re1 {[%clk 0:02:46]}  a6 {[%clk 0:02:32]} 10. Na3 {[%clk 0:02:45]}  Nf5 {[%clk 0:02:20]} 11. Nc2 {[%clk 0:02:43]}  Nd6 {[%clk 0:02:12]} 12. Bf4 {[%clk 0:02:40]}  Bf5 {[%clk 0:02:10]} 13. Bxf5 {[%clk 0:02:33]}  Nxf5 {[%clk 0:02:07]} 14. Ne3 {[%clk 0:02:24]}  Nxe3 {[%clk 0:02:06]} 15. Rxe3 {[%clk 0:02:22]}  e6 {[%clk 0:01:59]} 16. Qe2 {[%clk 0:02:06]}  b5 {[%clk 0:01:56]} 17. h4 {[%clk 0:01:57]}  Re8 {[%clk 0:01:50]} 18. h5 {[%clk 0:01:57]}  Qb6 {[%clk 0:01:47]} 19. Ne5 {[%clk 0:01:47]}  Nxe5 {[%clk 0:01:38]} 20. Bxe5 {[%clk 0:01:47]}  Bxe5 {[%clk 0:01:37]} 21. Rxe5 {[%clk 0:01:46]}  b4 {[%clk 0:01:36]} 22. h6 {[%clk 0:01:34]}  f6 {[%clk 0:01:35]} 23. Re3 {[%clk 0:01:30]}  bxc3 {[%clk 0:01:32]} 24. bxc3 {[%clk 0:01:26]}  Rac8 {[%clk 0:01:27]} 25. Re1 {[%clk 0:01:19]}  Kf7 {[%clk 0:01:26]} 26. Rf3 {[%clk 0:01:14]}  Rc6 {[%clk 0:01:18]} 27. Qe5 {[%clk 0:01:09]}  Qd8 {[%clk 0:01:04]} 28. Rb1 {[%clk 0:01:09]}  Rf8 {[%clk 0:00:56]} 29. Rb7+ {[%clk 0:00:46]}  Kg8 {[%clk 0:00:56]} 30. Qe2 {[%clk 0:00:45]}  Rb6 {[%clk 0:00:44]} 31. Rg7+ {[%clk 0:00:34]}  Kh8 {[%clk 0:00:43]} 32. Re3 {[%clk 0:00:30]}  Qd6 {[%clk 0:00:39]} 33. g3 {[%clk 0:00:26]}  Re8 {[%clk 0:00:34]} 34. c4 {[%clk 0:00:25]}  dxc4 {[%clk 0:00:29]} 35. Qxc4 {[%clk 0:00:24]}  Rc6 {[%clk 0:00:29]} 36. Qb3 {[%clk 0:00:16]}  Rb6 {[%clk 0:00:28]} 37. Qa4 {[%clk 0:00:12]}  Qc6 {[%clk 0:00:28]} 38. Qxc6 {[%clk 0:00:08]}  Rxc6 {[%clk 0:00:28]} 39. d5 {[%clk 0:00:07]}  Rd6 {[%clk 0:00:28]} 40. dxe6 {[%clk 0:00:07]}  Rdxe6 {[%clk 0:00:29]} 41. Rxe6 {[%clk 0:00:08]}  Rxe6 {[%clk 0:00:29]} 42. Ra7 {[%clk 0:00:08]}  Kg8 {[%clk 0:00:29]} 43. Kg2 {[%clk 0:00:08]}  g5 {[%clk 0:00:26]} 44. Rg7+ {[%clk 0:00:07]}  Kh8 {[%clk 0:00:24]} 45. Kf3 {[%clk 0:00:08]}  Rb6 {[%clk 0:00:22]} 46. Kg4 {[%clk 0:00:08]}  Rd6 {[%clk 0:00:21]} 47. Kf5 {[%clk 0:00:08]}  Rb6 {[%clk 0:00:20]} 48. Rf7 {[%clk 0:00:07]}  Kg8 {[%clk 0:00:19]} 49. Rxf6 {[%clk 0:00:08]}  Rb5+ {[%clk 0:00:19]} 50. Kg4 {[%clk 0:00:09]}  a5 {[%clk 0:00:16]} 51. Rf5 {[%clk 0:00:09]}  Rb4+ {[%clk 0:00:16]} 52. Kxg5 {[%clk 0:00:09]} 1-0


[Site "https://www.chess.com"]

[Event "Titled Tuesday Blitz March 29 Early 2022"]
[White "Weetik, Vjacheslav"]
[Black "Piesik, Piotr"]
[WhiteFideId "4153472"]
[BlackFideId "1136194"]
[WhiteElo "2469"]
[BlackElo "2190"]
[Result "0-1"]
[Round "10"]
[TimeControl "180+1"]
[Date "2022.03.29"]
[WhiteClock "0:00:05"]
[BlackClock "0:00:58"]

1. d4 {[%clk 0:02:55]}  c5 {[%clk 0:02:59]} 2. d5 {[%clk 0:02:55]}  e5 {[%clk 0:02:59]} 3. Nc3 {[%clk 0:02:56]}  d6 {[%clk 0:02:59]} 4. e4 {[%clk 0:02:56]}  Be7 {[%clk 0:03:00]} 5. Bb5+ {[%clk 0:02:56]}  Nd7 {[%clk 0:02:59]} 6. a4 {[%clk 0:02:57]}  Bg5 {[%clk 0:02:59]} 7. Bxg5 {[%clk 0:02:56]}  Qxg5 {[%clk 0:02:59]} 8. Nf3 {[%clk 0:02:57]}  Qd8 {[%clk 0:02:59]} 9. Nd2 {[%clk 0:02:53]}  a6 {[%clk 0:02:58]} 10. Be2 {[%clk 0:02:52]}  Ne7 {[%clk 0:02:58]} 11. Nc4 {[%clk 0:02:51]}  Nf6 {[%clk 0:02:58]} 12. a5 {[%clk 0:02:49]}  O-O {[%clk 0:02:57]} 13. O-O {[%clk 0:02:48]}  Ne8 {[%clk 0:02:55]} 14. Na4 {[%clk 0:02:47]}  Bd7 {[%clk 0:02:52]} 15. Nab6 {[%clk 0:02:47]}  Rb8 {[%clk 0:02:53]} 16. Qd2 {[%clk 0:02:36]}  Ng6 {[%clk 0:02:48]} 17. Rfe1 {[%clk 0:02:29]}  Bb5 {[%clk 0:02:45]} 18. b4 {[%clk 0:02:25]}  cxb4 {[%clk 0:02:42]} 19. Qxb4 {[%clk 0:02:24]}  Nf4 {[%clk 0:02:32]} 20. Bf1 {[%clk 0:02:22]}  f5 {[%clk 0:02:32]} 21. g3 {[%clk 0:02:13]}  Ng6 {[%clk 0:02:31]} 22. exf5 {[%clk 0:02:12]}  Ne7 {[%clk 0:02:25]} 23. Bh3 {[%clk 0:01:43]}  Nxf5 {[%clk 0:02:24]} 24. Bxf5 {[%clk 0:01:33]}  Rxf5 {[%clk 0:02:25]} 25. Ne3 {[%clk 0:01:34]}  Rf7 {[%clk 0:02:22]} 26. c4 {[%clk 0:01:31]}  Bd7 {[%clk 0:02:22]} 27. c5 {[%clk 0:01:28]}  Bh3 {[%clk 0:02:14]} 28. c6 {[%clk 0:01:22]}  Qf6 {[%clk 0:02:10]} 29. Qd2 {[%clk 0:01:16]}  Nc7 {[%clk 0:01:59]} 30. Rac1 {[%clk 0:01:12]}  Nb5 {[%clk 0:01:57]} 31. Rc4 {[%clk 0:00:23]}  Nd4 {[%clk 0:01:49]} 32. Rxd4 {[%clk 0:00:23]}  exd4 {[%clk 0:01:50]} 33. Ng2 {[%clk 0:00:23]}  Qf3 {[%clk 0:01:26]} 34. Nh4 {[%clk 0:00:23]}  Qg4 {[%clk 0:01:25]} 35. f4 {[%clk 0:00:15]}  g6 {[%clk 0:01:19]} 36. Qxd4 {[%clk 0:00:13]}  g5 {[%clk 0:01:16]} 37. Nd7 {[%clk 0:00:09]}  gxh4 {[%clk 0:01:08]} 38. Nxb8 {[%clk 0:00:07]}  Rf8 {[%clk 0:01:00]} 39. Re7 {[%clk 0:00:05]}  hxg3 {[%clk 0:00:58]} 0-1


[Site "https://www.chess.com"]